Cogmind - Beta 14 @@@ ROGUE MODE // 2024.09.22 @ 17:23:02 Player: ILikeVoltron Result: Destroyed by G-34 Mercenary with Small Laser Performance ------------- Evolutions (0) 0 Regions Visited (4) 800 Robots Destroyed (27) 135 Value Destroyed (468) 468 Prototype IDs (23) 460 Alien Tech Used (0) 0 Bonus (300) 300 TOTAL SCORE: 2163 Bonus ------- Aligned with FarCom 300 Cogmind --------- Core Integrity 0/250 Matter 278/300 Energy 265/265 System Corruption 0% Temperature Cool (44) Movement Treading (240) Ox1 Location -9/Mines Parts ------- > --- POWER (1) -------- Improved Ion Engine > --- PROPULSION (2) --- Light Treads Light Treads > --- UTILITY (2) ------ High-capacity Storage Unit Utility Shielding > --- WEAPON (2) ------- Small Laser Shotgun > --- INVENTORY (20) --- Light Ion Engine Light Ion Engine Light Ion Engine Aluminum Leg Aluminum Leg Small Storage Unit Large Storage Unit High-capacity Battery (250) High-capacity Battery (250) High-capacity Battery (250) Small Matter Pod (50) Small Matter Pod (50) Small Matter Pod (50) Improved Terrain Scanner Light Armor Plating Light Armor Plating Tractor Beam EM Pulse Gun Grenade Launcher Longsword +1 Peak State ------------ > --- POWER ------------ Ion Engine > --- PROPULSION ------- Light Treads Light Treads > --- UTILITY ---------- High-capacity Storage Unit Seismic Detector > --- WEAPON ----------- Small Laser Longsword +1 > --- INVENTORY -------- Light Ion Engine Light Ion Engine Aluminum Leg Aluminum Leg Wheel Wheel Small Storage Unit Large Storage Unit High-capacity Battery High-capacity Battery High-capacity Battery Small Matter Pod Small Matter Pod Small Matter Pod Improved Terrain Scanner EM Pulse Gun Assault Rifle Grenade Launcher [Rating: 16] Favorites ----------- Power Ion Engine Engine Ion Engine Propulsion Light Treads Treads Light Treads Leg Aluminum Leg Utility Seismic Detector Device Seismic Detector Storage High-capacity Storage Unit Protection Utility Shielding Weapon Small Laser Energy Gun Small Laser Ballistic Gun Shotgun Launcher Grenade Launcher Slashing Weapon Longsword +1 Build | -11 -10 -10 -10 -9 ------- Run | Yrd Mat Min Exi Min Slots Evolved . | . . . . . Power . | . . . . . Propulsion . | . . . . . Utility . | . . . . . Weapon . | . . . . . Parts Attached 16 | 1 . . 5 10 Power 1 | . . . . 1 Engine 1 | . . . . 1 Core . | . . . . . Reactor . | . . . . . Propulsion 4 | . . . 2 2 Treads 4 | . . . 2 2 Leg . | . . . . . Wheel . | . . . . . Hover . | . . . . . Flight . | . . . . . Utility 4 | 1 . . 2 1 Device 1 | 1 . . . . Storage 2 | . . . 2 . Processor . | . . . . . Hackware . | . . . . . Protection 1 | . . . . 1 Artifact . | . . . . . Weapon 7 | . . . 1 6 Energy Gun 1 | . . . . 1 Energy Cannon . | . . . . . Ballistic Gun 3 | . . . . 3 Ballistic Cannon . | . . . . . Launcher 1 | . . . . 1 Special Weapon . | . . . . . Impact Weapon . | . . . . . Slashing Weapon 2 | . . . 1 1 Piercing Weapon . | . . . . . Special Melee Weapon . | . . . . . Unidentified Prototypes . | . . . . . Parts Lost 3 | . . . . 3 Power 1 | . . . . 1 Propulsion . | . . . . . Utility 1 | . . . . 1 Weapon 1 | . . . . 1 Highest Loss Streak 2 | . . . . 2 To Critical Strikes . | . . . . . Average Slot Usage (%) 99 | . 100 100 100 98 Engine 13 | . 14 14 14 13 Treads 18 | . . . 11 28 Leg 9 | . 28 28 16 . Device 11 | . 14 14 14 8 Storage 14 | . 14 14 14 14 Protection 2 | . . . . 5 Energy Gun 17 | . 28 28 20 12 Ballistic Gun 4 | . . . . 8 Slashing Weapon 6 | . . . 7 5 Peak Build Rating 16 | 8 8 8 15 16 Average Rating 11 | 6 7 8 11 12 On Entrance 9 | 6 8 8 8 15 Naked Turns . | . . . . . Heaviest Build 54 | 14 14 14 50 54 Greatest Support 40 | 20 20 20 40 40 Greatest Overweight (x) 1 | . . . 1 1 Average Overweight (x) . | . . . . 1 Largest Inventory Capacity 20 | 8 8 8 20 20 Average Capacity 15 | 8 8 8 12 20 Most Carried 20 | 8 8 8 12 20 Average Carried 13 | 6 7 8 8 19 Final Capacity 20 | 8 8 8 20 20 Final Carried 20 | 8 8 8 12 20 Class Distribution -------------------- 96% | Mutant 3% | Scavenger-Mutant Dominant Class ---------------- Mutant | -10/Materials Mutant | -10/Mines Mutant | -10/Exiles Mutant | -9/Mines Resources | -11 -10 -10 -10 -9 ----------- Run | Yrd Mat Min Exi Min Matter Collected 606 | 241 . . . 365 Remotely . | . . . . . Salvage Created 897 | 172 . . . 725 Parts 69 | 23 . . . 46 Haulers Intercepted . | . . . . . Recyclers Shooed . | . . . . . Parts Field Recycled . | . . . . . Retrieved Matter . | . . . . . Parts Self-Destructed . | . . . . . Prevented . | . . . . . Kills | -11 -10 -10 -10 -9 ------- Run | Yrd Mat Min Exi Min Combat Hostiles Destroyed 12 | . . . . 12 Melee 1 | . . . . 1 Guns 9 | . . . . 9 AOE 2 | . . . . 2 Classes Destroyed 7 | 3 . . . 4 Worker 5 | 2 . . . 3 Builder 3 | . . . . 3 Tunneler 4 | 4 . . . . Recycler 4 | 1 . . . 3 Grunt 9 | . . . . 9 Sentry 2 | . . . . 2 Assembled 1 | . . . . 1 Best Kill Streak 6 | 3 . . . 6 Combat Bots Only 4 | . . . . 4 Max Kills in Single Turn 1 | 1 . . . 1 Gunslinging . | . . . . . Exploded 1 | . . . . 1 Melee 1 | . . . . 1 Uniques/NPCs Destroyed . | . . . . . Combat | -11 -10 -10 -10 -9 -------- Run | Yrd Mat Min Exi Min Hostile Shots Fired 79 | . . . . 79 Missed 18 | . . . . 18 Damage Taken 790 | . . . . 790 Core 253 | . . . . 253 Absorbed by Shields . | . . . . . Redirected to Shielding 9 | . . . . 9 Core Remaining (%) 100 | 100 . . . . Volleys Fired 56 | 18 2 . . 36 Largest 2 | 2 2 . . 2 Hottest 80 | 80 80 . . 63 Shots Fired 97 | 34 3 . . 60 Gun 95 | 34 3 . . 58 Cannon . | . . . . . Launcher 2 | . . . . 2 Special . | . . . . . Kinetic 34 | . . . . 34 Thermal 41 | 16 1 . . 24 Explosive 2 | . . . . 2 Electromagnetic 20 | 18 2 . . . Robot Hit Streak 7 | 5 . . . 7 Robot Miss Streak 4 | 4 3 . . 4 Penetration Max . | . . . . . Secondary Targets . | . . . . . Shots Hit Robots 67 | 16 . . . 51 Core Hits 35 | 7 . . . 28 Critical Kills 1 | . . . . 1 Critical Parts Destroyed . | . . . . . Critical Strikes 2 | . . . . 2 Destroy 1 | . . . . 1 Sever 1 | . . . . 1 Melee Attacks 29 | . . . . 29 Impact . | . . . . . Slashing 29 | . . . . 29 Piercing . | . . . . . Sneak Attacks 6 | . . . . 6 Combat Hostiles . | . . . . . Follow-up Attacks . | . . . . . Damage Inflicted 1620 | 226 . . . 1394 Guns 786 | 204 . . . 582 Cannons . | . . . . . Explosions 204 | 22 . . . 182 Melee 629 | . . . . 629 Ramming 1 | . . . . 1 Kinetic 446 | . . . . 446 Thermal 237 | 101 . . . 136 Explosive 182 | . . . . 182 Electromagnetic 125 | 125 . . . . Impact . | . . . . . Slashing 629 | . . . . 629 Piercing . | . . . . . Highest Corruption . | . . . . . Average Corruption . | . . . . . Corruption Purged . | . . . . . Corruption Blocked . | . . . . . Overload Shots . | . . . . . Overflow Damage 189 | . . . . 189 Projectiles . | . . . . . Explosions . | . . . . . Melee 189 | . . . . 189 Knockbacks . | . . . . . Impact . | . . . . . Kinetic . | . . . . . Secondary . | . . . . . Self-Inflicted Damage 57 | . . . . 57 Shots 2 | . . . . 2 Rammed 1 | . . . . 1 Targets Rammed 1 | . . . . 1 Kicked . | . . . . . Crushed . | . . . . . Highest Temperature 108 | 108 18 . . 60 Average Temperature 24 | 31 14 . . 19 Received Heat Transfer 333 | . . . . 333 Siege Activations . | . . . . . Robots Corrupted . | . . . . . Combat Hostiles . | . . . . . Parts Fried . | . . . . . Impact Corruptions . | . . . . . Robots Melted . | . . . . . Combat Hostiles . | . . . . . Parts Melted . | . . . . . Heat Transferred 525 | 225 . . . 300 Parts Sabotaged . | . . . . . Parts Stolen . | . . . . . Parts Stripped . | . . . . . Power Chain Reactions 1 | 1 . . . . Alert | -11 -10 -10 -10 -9 ------- Run | Yrd Mat Min Exi Min Peak Influence 125 | 35 22 8 . 125 Initial 22 | . 22 8 . . Average 45 | 18 22 8 . 53 Maximum Alert Level . | . . . . . Low Security (%) 100 | 100 100 100 . 100 Level 1 . | . . . . . Level 2 . | . . . . . Level 3 . | . . . . . Level 4 . | . . . . . Level 5 . | . . . . . High Security . | . . . . . Max Security . | . . . . . Squads Dispatched 2 | . 2 . . . Investigation 1 | . 1 . . . Extermination . | . . . . . Reinforcement 1 | . 1 . . . Assault . | . . . . . Garrison . | . . . . . Intercept . | . . . . . Searches Triggered . | . . . . . Construction Impeded . | . . . . . Haulers Reinforced . | . . . . . Active Scanning Responses . | . . . . . Cargo Convoy Interrupts . | . . . . . Stealth | -11 -10 -10 -10 -9 --------- Run | Yrd Mat Min Exi Min Distress Signals 2 | . . . . 2 Communications Jammed . | . . . . . Distress Signals . | . . . . . Times Spotted 16 | . 1 . . 15 Peak Tracking Total 4 | . 1 . . 4 Tactical Retreats . | . . . . . Traps | -11 -10 -10 -10 -9 ------- Run | Yrd Mat Min Exi Min Traps Triggered . | . . . . . Indirectly . | . . . . . Trap Hack Attempts . | . . . . . Triggered . | . . . . . Disarmed . | . . . . . Reprogrammed . | . . . . . Reused . | . . . . . Traps Extracted . | . . . . . Installed . | . . . . . Triggered . | . . . . . Machines | -11 -10 -10 -10 -9 ---------- Run | Yrd Mat Min Exi Min Machines Disabled . | . . . . . Max in Single Turn . | . . . . . Machines Repaired . | . . . . . Machines Dismantled . | . . . . . Machines Sabotaged . | . . . . . Overloaded Fab Kills . | . . . . . Hacking | -11 -10 -10 -10 -9 --------- Run | Yrd Mat Min Exi Min Machines Accessed 6 | . . . 5 1 Terminals . | . . . . . Fabricators . | . . . . . Repair Stations . | . . . . . Recycling Units . | . . . . . Scanalyzers . | . . . . . Garrison Access . | . . . . . Total Hacks 51 | . . . 50 1 Successful 51 | . . . 50 1 Failed . | . . . . . Catastrophic . | . . . . . Database Lockouts . | . . . . . Manual 1 | . . . 1 . Terminals . | . . . . . Fabricators . | . . . . . Repair Stations . | . . . . . Recycling Units . | . . . . . Scanalyzers . | . . . . . Garrison Access . | . . . . . Terminal Hacks 51 | . . . 50 1 Record 49 | . . . 49 . Open Door 1 | . . . . 1 Derelict Proto ID Bank 1 | . . . 1 . Fabricator Hacks . | . . . . . Repair Station Hacks . | . . . . . Recycling Unit Hacks . | . . . . . Scanalyzer . | . . . . . Garrison Access Hacks . | . . . . . Unauthorized Hacks . | . . . . . Terminals . | . . . . . Fabricators . | . . . . . Repair Stations . | . . . . . Recycling Units . | . . . . . Scanalyzers . | . . . . . Garrison Access . | . . . . . Data Cores Recovered . | . . . . . Used . | . . . . . Hacking Detections . | . . . . . Full Trace Events . | . . . . . Feedback Events . | . . . . . Feedback Blocked . | . . . . . Robot Schematics Acquired . | . . . . . Robots Built . | . . . . . Authchips . | . . . . . Time . | . . . . . Total Robot Build Rating . | . . . . . Part Schematics Acquired . | . . . . . Parts Built . | . . . . . Authchips . | . . . . . Time . | . . . . . Total Part Build Rating . | . . . . . Parts Repaired . | . . . . . Time . | . . . . . Parts Recycled . | . . . . . Recycled Matter . | . . . . . Retrieved Matter . | . . . . . Retrieved Components . | . . . . . Parts Scanalyzed . | . . . . . Part Schematics Acquired . | . . . . . Parts Damaged . | . . . . . Bothacking | -11 -10 -10 -10 -9 ------------ Run | Yrd Mat Min Exi Min Used RIF Installer . | . . . . . Robots Hacked . | . . . . . Non-combat . | . . . . . Combat . | . . . . . Robot Hacks Applied . | . . . . . Relay Couplers Released . | . . . . . Fabnet Peak Effective % . | . . . . . Robots Rewired . | . . . . . Allies Hacked . | . . . . . Hacks Repelled . | . . . . . Allies | -11 -10 -10 -10 -9 -------- Run | Yrd Mat Min Exi Min Total Allies . | . . . . . Largest Group . | . . . . . Highest-Rated Group . | . . . . . Highest-Rated Ally . | . . . . . Total Orders . | . . . . . Ally Attacks . | . . . . . Total Damage . | . . . . . Kills . | . . . . . Allies Corrupted . | . . . . . Allies Melted . | . . . . . Intel | -11 -10 -10 -10 -9 ------- Run | Yrd Mat Min Exi Min Robot Analysis Total . | . . . . . Derelict Logs Recovered 2 | . . . . 2 Drone Launches . | . . . . . Drone Recoveries . | . . . . . Exploration | -11 -10 -10 -10 -9 ------------- Run | Yrd Mat Min Exi Min Turns Passed 2291 | 195 98 15 951 1032 Spaces Moved 1164 | 106 77 11 628 342 Core . | . . . . . Treads 499 | . . . 157 342 Legs 665 | 106 77 11 471 . Wheels . | . . . . . Hover . | . . . . . Flight . | . . . . . Fastest Speed 120 | 120 120 120 120 240 Average Speed 171 | 120 120 120 149 240 Slowest Speed 240 | 120 120 120 240 240 Overloaded Moves . | . . . . . Propulsion Burnouts . | . . . . . Robots Hopped . | . . . . . Cave-ins Triggered . | . . . . . Exploration Rate (%) 35 | 6 27 5 92 45 Regions Visited 4 Branch Regions 3 Pre-discovered Areas 1 | . . . 1 . Known Exits Taken . | . . . . . Unknown Exits Taken 4 | 1 1 1 1 . Scrap Searched 1 | . . . . 1 Spaces Dug 8 | . . . . 8 Terrain Destroyed 27 | 2 . . . 25 Melee 8 | . . . . 8 Projectile . | . . . . . AOE 19 | 2 . . . 17 Terrain Rammed . | . . . . . Walls Destroyed . | . . . . . Machines Disabled . | . . . . . Actions | -11 -10 -10 -10 -9 --------- Run | Yrd Mat Min Exi Min Total 1338 | 140 80 13 640 465 Wait 45 | 12 . 3 . 30 Move 1160 | 105 76 10 627 342 Hop . | . . . . . Pick Up 19 | 3 1 . 5 10 Fast Attach 5 | 1 . . . 4 Attach . | . . . . . Detach . | . . . . . Swap 11 | . . . 5 6 Drop 12 | 1 1 . 3 7 Fire 56 | 18 2 . . 36 Melee 29 | . . . . 29 Ram . | . . . . . Kick . | . . . . . Crush 1 | . . . . 1 Escape Stasis . | . . . . . Rewire . | . . . . . Trap . | . . . . . Miscellaneous . | . . . . . Route ------- -11/Scrapyard -10/Materials -10/Mines -10/Exiles (discovered 2 exits: *Min x2) -9/Mines History --------- Turn | Location | Event 13 | -11/Scrapyard | Discovered new exit (range 2) 196 | -11/Scrapyard | Entered Materials 281 | -10/Materials | Discovered new exit (range 12) 285 | -10/Materials | Met 8R-AWN 294 | -10/Materials | Entered Mines 295 | -10/Mines | Followed 8R-AWN into the Mines 300 | -10/Mines | Build established: Mutant 302 | -10/Mines | Discovered new exit (range 5) 309 | -10/Mines | Entered Exiles 325 | -10/Exiles | Discovered new exit (range 15) 338 | -10/Exiles | Welcomed by 8R-AWN 356 | -10/Exiles | Met EX-HEX 403 | -10/Exiles | Met EX-DEC 429 | -10/Exiles | Visited The Gauntlet 606 | -10/Exiles | Discovered new exit (range 14) 649 | -10/Exiles | Learned location of Zion (-7) 677 | -10/Exiles | Met EX-BIN 693 | -10/Exiles | Aligned with FarCom system 695 | -10/Exiles | Given EX-Vault access code 751 | -10/Exiles | Opened EX-Vault 758 | -10/Exiles | Found Longsword +1 786 | -10/Exiles | Warned to stay clear of 0b10 Research branches 1260 | -10/Exiles | Left Exiles lab with Longsword +1 1260 | -10/Exiles | Entered Mines 1340 | -9/Mines | Excavation squad dispatched 1340 | -9/Mines | A large section of the Mines collapsed 1590 | -9/Mines | Excavation squad dispatched 1753 | -9/Mines | Learned Materials emergency access door positions 1757 | -9/Mines | Found the Drone Emporium 1785 | -9/Mines | Learned Materials stockpile data 1811 | -9/Mines | A weapon hastily lodged in a ceiling crevice suddenly fell to the ground 1840 | -9/Mines | Excavation squad dispatched 1876 | -9/Mines | Core integrity fell below 50% 2090 | -9/Mines | Excavation squad dispatched 2203 | -9/Mines | Core integrity fell below 20% 2292 | -9/Mines | Destroyed by G-34 Mercenary with Small Laser Last Messages --------------- 02181_ Acquired 4 matter. 02189_ G-34 Mercenary destroyed. 02190_ Acquired 4 matter. 02194_ U-05 Engineer destroyed. 02200_ Sml. Laser destroyed. 02204_ Acquired 7 matter. 02216_ G-34 Mercenary destroyed. 02218_ Acquired 8 matter. 02238_ K-01 Serf collects debris. 02248_ Acquired 4 matter. 02248_ K-01 Serf sends out distress signal. 02250_ Acquired 4 matter. 02251_ K-01 Serf destroyed. 02252_ Acquired 4 matter. 02260_ G-34 Mercenary destroyed. 02261_ Acquired 4 matter. 02265_ Acquired Ripper. 02266_ Acquired 10 matter. 02283_ Dropped Ripper. 02284_ Acquired Sml. Laser. Map ----- +----------------------------------------------------+ | ?????????????????????????????????????????????????? | | ?????????????????????????????????????????????????? | | ?????????????????????????????????????????????????? | | ??????????######?????????????????????????????????? | | ?????????##""""##?####???????????????????????????? | | ?????????#" ! "### ###?????????????????????????? | | ?????????#" "## ##?????#########??????????? | | ??????????# ## ##????# #??????????? | | ????????#### ## ##???# """ #??????????? | | ?##????## X ##??# """ #??????????? | | ## ##?## #??# """ #??????????? | | # ### #??# #??????????? | | # ##??##### ###??????????? | | ## ###???????# #????????????? | | ?## ## ##?????????# #????????????? | | ??# #### ##%%#??????????# #####????????? | | ??# #??## ###!!#??????????# #????????? | | ??## #???## ##?#= #####???##########????????? | | ???## #????# ##??#!!# #?? #????# #????????? | | ????## ##????# #???# #?? ##???# #????????? | | ????######????# #??## ##?? ##### #????????? | | ???##"%="##???# #### ! ##??# rt u;t ????????? | | ???#![[=!]#???# ## [=*##??# ;%ggt; #????????? | | ???#![ !|!#???### ###=*!# ## *%gt#?## #????????? | | ???##= %=##???### ###%=%###[%! [ #??# #????????? | | ???###++###???# *%[=/!t@%*== #?## #????????? | | ???# = #???# #####=!####%! #??# #????????? | | ???# ##### #?# ####### t####??# #"#???????? | | ???# ## #?######?## ##?????# ###???????? | | ???# ## #????????# ##??????#" ###??????? | | ???# ## #????????# #???????## | #??????? | | ???# ## #????????## #??????#######??????? | | ???# ## #?????????## ##????## ##?????????? | | ???# #??????????# #???## ##??????????? | | ???# ####??????????# ##?## ##???????????? | | ???# #????????????##= ### ##????????????? | | ???###########????????????#%%!!## ##?????????????? | | ??????????????????????????# |=## ##??????????????? | | ??????????????????????????# =#####???????????????? | | ??????????????????????????# #???????????????????? | | ????????????????????####### #???????????????????? | | ????????????????????# #???????????????????? | | ????????????????????# ##### ##???????????????????? | | ????????????????????# #???# #????????????????????? | | ????????????????????# #???# #????????????????????? | | ???????????????????## ##??# ###??????????????????? | | ?????????????####?## #### #??????????????????? | | ????????????## ### ## #??????????????????? | | ????????????# ##??????????????????? | | ????????????# ## ##???????????????????? | +----------------------------------------------------+ Best States ------------- Heat Dissipation 25 Energy Generation 12 Energy Capacity 265 Matter Stores 300 Matter Capacity 300 Sight Range 16 Terrain Scan Density 10 Utility Shielding 33 Evasion (%) 55 Recoil Reduction 2 Item Schematics ----------------- None Robot Schematics ------------------ None Fabricated ------------ Nothing Alien Tech Used ----------------- None Achievements -------------- None Challenges ------------ None Game ------ Seed ReinforcedStormFrame Manual? 0 Play Time 00:19:32 Cumulative 172.4 hours Start 2024.09.22 @ 17:04:24 End 2024.09.22 @ 17:23:02 Sessions 1 Manual Loads 0 Difficulty Rogue Special Mode None Game No. 313 Rogue 309 Adventurer 0 Explorer 4 Win Type - Total 0 Types 0/0/0/0/0/0/0/0/0 Lore% 21 Gallery% 46 Achievement% 35 Wizard Run 0 Options --------- Layout 1 ASCII 0 Keyboard 1 Movement Arrows Keybinds 0 Fullscreen 1 Font 32/SmallcapsGlow Map View 130x35 Zoom Use 0% Tactical HUD 1 Map Filters NONE Filters NONE Steam 0 RUN: f77e279b-6b6e-43e8-b192-0562e833d9ae